bitfinex/quotes_BTCUSD_20240701
["timestamp","ask_amount","ask_price","bid_price","bid_amount"]
[1719842552443,1.34481228,62801.0,62800.0,0.16233898]
[1719842552639,1.34481228,62801.0,62798.0,0.259531]
[1719842552640,1.02737128,62799.0,62798.0,0.172831]
[1719842552850,1.34584728,62799.0,62798.0,0.33516998]
[1719842553110,1.34584728,62799.0,62798.0,0.172831]
[1719842553111,1.35584728,62799.0,62798.0,0.172831]
[1719842553677,1.34584728,62799.0,62798.0,0.172831]
[1719842553875,1.34584728,62799.0,62798.0,0.1901141]
[1719842554297,1.34484728,62799.0,62798.0,0.1761141]
[1719842554503,0.87422002,62799.0,62798.0,0.32116998]
[1719842554679,1.01475197,62799.0,62798.0,0.32116998]
[1719842554888,0.87422002,62799.0,62798.0,0.32116998]
[1719842555091,1.01475197,62799.0,62798.0,0.32116998]
[1719842555284,0.87422002,62799.0,62798.0,0.35328698]
[1719842555490,0.87422002,62799.0,62798.0,0.37128698]
[1719842555722,1.34484728,62799.0,62798.0,0.32616998]
[1719842556082,1.34484728,62799.0,62798.0,0.172831]
[1719842556306,1.34484728,62799.0,62798.0,0.158831]
[1719842556678,1.34484728,62799.0,62798.0,0.171831]
[1719842556947,1.34484728,62799.0,62798.0,0.158831]
[1719842557149,1.01475197,62799.0,62798.0,0.33705308]
[1719842557351,1.01475197,62799.0,62798.0,0.32116998]
[1719842557559,1.34484728,62799.0,62798.0,0.32116998]
[1719842557771,1.34484728,62799.0,62798.0,0.33316998]
[1719842557930,1.34484728,62799.0,62798.0,0.17433898]
[1719842558317,1.01475197,62799.0,62798.0,0.16233898]
[1719842558520,1.01475197,62799.0,62798.0,0.18657288]
[1719842558737,1.34484728,62799.0,62798.0,0.18657288]
[1719842558977,0.94841626,62793.0,62792.0,0.0823]
[1719842559264,0.94841626,62793.0,62792.0,0.40346998]
[1719842560177,0.796265,62793.0,62792.0,0.40346998]
[1719842560377,0.55578902,62793.0,62792.0,0.40346998]
[1719842560587,0.55578902,62793.0,62792.0,0.45480505]
[1719842560794,0.159251,62794.0,62792.0,0.46318574]
[1719842560992,0.159237,62800.0,62796.0,0.159245]
[1719842561270,0.477721,62798.0,62797.0,0.29058245]
[1719842561486,0.15924,62798.0,62797.0,0.16233898]
[1719842561914,0.29977195,62798.0,62797.0,0.16233898]
[1719842563046,0.31139126,62798.0,62797.0,0.16233898]
[1719842563248,0.15924,62798.0,62797.0,0.24144468]
[1719842563446,0.159234,62801.0,62799.0,0.00838069]
[1719842563653,0.159234,62801.0,62800.0,0.34503898]
[1719842563851,0.159221,62806.0,62802.0,0.00838069]
[1719842564072,0.159223,62805.0,62803.0,0.25005714]
[1719842564294,0.31844,62806.0,62803.0,0.25005714]
[1719842564295,0.159225,62804.0,62803.0,0.25005714]
[1719842564696,0.29975695,62804.0,62803.0,0.25005714]
[1719842564897,0.53699497,62808.0,62803.0,0.25005714]
[1719842565096,0.29975595,62805.0,62804.0,0.05133507]
[1719842565306,0.29975595,62805.0,62804.0,0.21367405]
[1719842565307,0.62982026,62805.0,62804.0,0.21367405]
[1719842565500,0.796114,62805.0,62804.0,0.16233898]
[1719842565781,0.477669,62805.0,62804.0,0.16233898]
[1719842565900,0.14053195,62808.0,62804.0,0.16233898]
[1719842566103,0.159222,62806.0,62805.0,0.16233898]
[1719842566323,0.477662,62806.0,62805.0,0.16233898]
[1719842566552,0.61819395,62806.0,62805.0,0.16233898]
[1719842566766,1.34472328,62806.0,62805.0,0.16233898]
[1719842568423,0.318415,62811.0,62804.0,0.006]
[1719842568424,1.34473828,62805.0,62804.0,0.006]
[1719842568680,1.34473828,62805.0,62804.0,0.16233898]
[1719842569847,1.34473828,62805.0,62804.0,0.17433898]
[1719842570093,1.35473828,62805.0,62804.0,0.026]
[1719842570317,1.67318328,62805.0,62804.0,0.026]
[1719842570523,1.66318328,62805.0,62804.0,0.026]
[1719842570724,1.34473828,62805.0,62804.0,0.026]
[1719842571522,1.34473828,62805.0,62804.0,0.0444831]
[1719842571926,1.34473828,62805.0,62804.0,0.026]
[1719842573005,1.67318328,62805.0,62804.0,0.026]
[1719842573378,1.77278328,62805.0,62804.0,0.026]
[1719842574340,1.66318328,62805.0,62804.0,0.012]
[1719842574551,1.34473828,62805.0,62804.0,0.012]
[1719842574746,1.35473828,62805.0,62804.0,0.012]
[1719842574945,1.67318328,62805.0,62804.0,0.012]
[1719842575536,0.159264,62789.0,62787.0,0.47591475]
[1719842575741,0.159264,62789.0,62788.0,0.27614852]
[1719842576344,0.29979595,62789.0,62788.0,0.27614852]
[1719842576565,0.159264,62789.0,62788.0,0.27614852]
[1719842577030,0.159259,62791.0,62790.0,0.00838069]
[1719842577165,0.159256,62792.0,62791.0,0.00838069]
[1719842577366,0.159256,62792.0,62791.0,0.208075]
[1719842577546,0.61829895,62792.0,62791.0,0.208075]
[1719842577747,0.61829895,62792.0,62791.0,0.16233898]
[1719842578185,0.477767,62792.0,62791.0,0.16233898]
[1719842578361,0.159256,62792.0,62791.0,0.16233898]
[1719842578565,0.14053195,62801.0,62795.0,0.00838069]
[1719842578773,0.14053195,62798.0,62796.0,0.16233898]
[1719842578966,0.14053195,62798.0,62797.0,0.08278423]
[1719842578967,0.29977395,62798.0,62797.0,0.08278423]
[1719842579190,0.29977395,62798.0,62797.0,0.24512321]
[1719842579434,0.159238,62799.0,62797.0,0.24512321]
[1719842579612,0.29977195,62798.0,62797.0,0.08278423]
[1719842579814,0.61825295,62798.0,62797.0,0.08278423]
[1719842580162,0.62988726,62796.0,62795.0,0.158831]
[1719842580338,1.02640828,62796.0,62795.0,0.32116998]
[1719842580696,1.34489928,62796.0,62795.0,0.32116998]
[1719842581511,1.34489928,62796.0,62795.0,0.158831]
[1719842581822,1.34489928,62796.0,62795.0,0.170831]
[1719842582222,1.35489928,62796.0,62795.0,0.170831]
[1719842582525,1.34489928,62796.0,62795.0,0.170831]
[1719842582723,1.35489928,62796.0,62795.0,0.170831]
[1719842582907,1.67339028,62796.0,62795.0,0.170831]
[1719842583110,1.90029028,62796.0,62795.0,0.01192659]
[1719842583361,1.89029028,62796.0,62795.0,0.01192659]
[1719842583562,2.21878128,62796.0,62795.0,0.01192659]
[1719842583740,2.31878128,62796.0,62795.0,0.01192659]
[1719842584415,2.39388128,62796.0,62795.0,0.01192659]
[1719842584616,0.08964933,62786.0,62785.0,0.4716]
[1719842584871,1.03653628,62786.0,62785.0,0.048084]
[1719842585106,0.55586502,62783.0,62782.0,0.00924]
[1719842585228,1.02657328,62783.0,62782.0,0.00924]
[1719842585778,1.34513028,62783.0,62782.0,0.00924]
[1719842586523,1.34513028,62783.0,62782.0,0.01324]
[1719842587763,1.34513028,62783.0,62782.0,0.01824]
[1719842588151,1.34513028,62783.0,62782.0,0.01424]
[1719842588351,1.34513028,62783.0,62782.0,0.00924]
[1719842588352,1.35513028,62783.0,62782.0,0.00924]
[1719842588748,1.35513028,62783.0,62782.0,0.01424]
[1719842588964,1.42943028,62783.0,62782.0,0.01424]
[1719842589164,1.42943028,62783.0,62782.0,0.01824]
[1719842589165,1.74798728,62783.0,62782.0,0.01824]
[1719842589567,1.73798728,62783.0,62782.0,0.01824]
[1719842589748,1.74798728,62783.0,62782.0,0.01824]
[1719842589948,1.73798728,62783.0,62782.0,0.01824]
[1719842590197,1.74798728,62783.0,62782.0,0.01824]
[1719842590398,1.73798728,62783.0,62782.0,0.01824]
[1719842590574,1.74798728,62783.0,62782.0,0.01824]
[1719842591715,2.06654428,62783.0,62782.0,0.01824]
[1719842593615,2.06654428,62783.0,62782.0,0.019774]
[1719842594396,2.22887799,62783.0,62782.0,0.019774]
[1719842594583,2.61467799,62783.0,62782.0,0.019774]
[1719842595005,2.81467799,62783.0,62782.0,0.019774]
[1719842595222,3.13323499,62783.0,62782.0,0.019774]
[1719842595624,3.13323499,62783.0,62782.0,0.010774]
[1719842595891,3.29557397,62783.0,62782.0,0.010774]
[1719842596165,3.29557397,62783.0,62770.0,0.00924]
[1719842596166,1.83716228,62771.0,62770.0,0.00924]
[1719842596374,2.06406228,62771.0,62770.0,0.00924]
[1719842596530,2.16406228,62771.0,62770.0,0.00924]
[1719842597244,2.48268028,62771.0,62770.0,0.00924]
[1719842597436,2.16406228,62771.0,62770.0,0.00924]
[1719842599296,2.36406228,62771.0,62770.0,0.00924]
[1719842599426,2.84501399,62771.0,62770.0,0.01024]
[1719842599617,2.64601399,62771.0,62770.0,0.01124]
[1719842599883,2.69068827,62771.0,62770.0,0.01124]
[1719842600086,2.89068827,62771.0,62770.0,0.01124]
[1719842600271,3.09063092,62771.0,62770.0,0.01124]
[1719842600816,1.81815414,62771.0,62770.0,0.01124]
[1719842600965,1.77490493,62771.0,62770.0,0.01124]
[1719842601175,1.97490493,62771.0,62770.0,0.01124]
[1719842601504,2.09352293,62771.0,62770.0,0.01124]
[1719842601752,1.81957921,62771.0,62770.0,0.01124]
[1719842601954,1.77490493,62771.0,62770.0,0.01124]
[1719842602886,2.7752263,62771.0,62770.0,0.01124]
[1719842603098,3.10546528,62771.0,62770.0,0.01024]
[1719842603514,3.10446528,62771.0,62770.0,0.01024]
[1719842603930,3.10446528,62771.0,62770.0,0.01124]
[1719842603931,3.10546528,62771.0,62770.0,0.01124]
[1719842604149,3.15013956,62771.0,62770.0,0.01024]
[1719842604353,3.15013956,62771.0,62770.0,0.00924]
[1719842604557,3.15013956,62771.0,62770.0,0.01124]
[1719842604558,3.46875756,62771.0,62770.0,0.01124]
[1719842604988,2.40529493,62767.0,62766.0,1e-06]
[1719842605120,2.40529493,62767.0,62764.0,0.00924]
[1719842605121,1.44939593,62765.0,62764.0,0.00924]
[1719842605336,1.44939593,62765.0,62745.0,0.000924]
[1719842605337,1.27600493,62764.0,62763.0,8.4e-07]
[1719842605539,2.6805754,62764.0,62763.0,8.4e-07]
[1719842605860,3.68021711,62764.0,62763.0,8.4e-07]
[1719842606060,1.19408593,62746.0,62745.0,0.000924]
[1719842606238,2.23824442,62746.0,62745.0,0.000924]
[1719842606437,2.33824442,62746.0,62745.0,0.000924]
[1719842606642,1.86239942,62746.0,62745.0,0.000924]
[1719842606862,1.80915021,62746.0,62745.0,0.000924]
[1719842607204,1.81915021,62746.0,62745.0,0.000924]
[1719842607745,1.76447593,62746.0,62745.0,0.000924]
[1719842607962,1.76547593,62746.0,62745.0,0.001924]
[1719842608187,1.77547593,62746.0,62745.0,0.001924]
[1719842608626,2.09598442,62746.0,62745.0,0.001924]
[1719842608790,2.98921761,62746.0,62745.0,0.001924]
[1719842609206,2.98921761,62746.0,62745.0,0.000924]
[1719842609207,3.12379189,62746.0,62745.0,0.000924]
[1719842609409,2.92379189,62746.0,62745.0,0.000924]
[1719842609770,3.12679189,62746.0,62745.0,0.000924]
[1719842610141,3.12379189,62746.0,62745.0,1e-06]
[1719842610477,3.1052684,62746.0,62745.0,1e-06]
[1719842610696,3.4270134,62746.0,62745.0,1e-06]
[1719842611235,3.4260134,62746.0,62745.0,1e-06]
[1719842611439,3.4260134,62746.0,62745.0,0.001001]
[1719842611440,2.9072684,62746.0,62745.0,0.001001]
[1719842611680,3.1072684,62746.0,62745.0,0.001001]
[1719842611882,2.9072684,62746.0,62745.0,0.001001]
[1719842612084,3.01365991,62746.0,62745.0,1e-06]
[1719842612263,3.01365991,62746.0,62745.0,0.001001]
[1719842612652,3.01065991,62746.0,62745.0,0.001]
[1719842612857,2.00137593,62746.0,62745.0,0.002]
[1719842613015,2.00437593,62746.0,62745.0,0.001]
[1719842613471,1.44873093,62746.0,62745.0,0.001]
[1719842614048,1.33716897,62746.0,62745.0,0.001]
[1719842614266,0.24040202,62746.0,62745.0,0.32183898]
[1719842614463,0.69967897,62746.0,62745.0,0.32183898]
[1719842614642,0.71124093,62746.0,62745.0,0.32183898]
[1719842614846,1.02998593,62746.0,62745.0,0.32283898]
[1719842615327,0.55914702,62746.0,62745.0,0.32283898]
[1719842615550,0.55914702,62746.0,62745.0,0.35512288]
[1719842615742,1.02998593,62746.0,62745.0,0.32183898]
[1719842616066,1.01842397,62746.0,62745.0,0.32783898]
[1719842616262,1.02998593,62746.0,62745.0,0.32783898]
[1719842616463,1.34873093,62746.0,62745.0,0.1655]
[1719842616906,0.003,62746.0,62745.0,0.34438898]
[1719842617109,0.24040202,62746.0,62745.0,0.34438898]
[1719842617318,0.69967897,62746.0,62745.0,0.34438898]
[1719842617604,0.69967897,62746.0,62745.0,0.1655]
[1719842617605,1.34873093,62746.0,62745.0,0.1655]
[1719842617919,1.33716897,62746.0,62745.0,0.1655]
[1719842618174,1.33716897,62746.0,62745.0,0.32183898]
[1719842618175,0.162372,62746.0,62745.0,0.32183898]
[1719842618535,0.481117,62746.0,62745.0,0.32783898]
[1719842619380,0.481117,62746.0,62745.0,0.36146668]
[1719842619381,0.62164895,62746.0,62745.0,0.36146668]
[1719842619583,0.62164895,62746.0,62745.0,0.35546668]
[1719842620010,1.02998593,62746.0,62745.0,0.35546668]
[1719842620150,1.02698593,62746.0,62745.0,0.36046668]
[1719842620350,1.34573093,62746.0,62745.0,0.1645]
[1719842620563,1.34573093,62746.0,62745.0,0.1655]
[1719842620564,1.34873093,62746.0,62745.0,0.1655]
[1719842620958,1.67447593,62746.0,62745.0,0.006]
[1719842621305,2.22012093,62746.0,62745.0,0.015]
[1719842621504,2.32012093,62746.0,62745.0,0.015]
[1719842621709,1.34589193,62737.0,62736.0,0.00924]
[1719842622306,0.14053195,62739.0,62736.0,0.20747808]
[1719842622445,0.07803002,62738.0,62737.0,0.47818]
[1719842622653,1.02708893,62738.0,62737.0,0.47818]
[1719842622857,1.34587493,62738.0,62737.0,0.47818]
[1719842624726,1.19378102,62738.0,62737.0,0.48818]
[1719842625532,1.19378102,62738.0,62737.0,0.49718]
[1719842625740,0.07803002,62740.0,62737.0,0.74421208]
[1719842625945,0.159391,62739.0,62737.0,0.6719731]
[1719842626151,0.01156196,62743.0,62740.0,0.0684]
[1719842626152,0.15938,62743.0,62740.0,0.0684]
[1719842626303,0.23740902,62744.0,62743.0,0.00843804]
[1719842626509,0.14053195,62747.0,62743.0,0.18426284]
[1719842626705,0.1,62758.0,62743.0,0.18426284]
[1719842626706,0.14053195,62751.0,62748.0,0.0886]
[1719842627034,0.39673002,62755.0,62750.0,0.00843804]
[1719842627356,0.45922595,62757.0,62751.0,0.29586949]
[1719842627656,0.159355,62753.0,62751.0,0.29905633]
[1719842627955,0.318696,62756.0,62751.0,0.29586949]
[1719842627956,0.159352,62754.0,62751.0,0.29586949]
[1719842628160,0.159352,62754.0,62751.0,0.30430753]
[1719842628362,0.159355,62753.0,62751.0,0.29586949]
[1719842628514,0.159355,62753.0,62751.0,0.24617702]
[1719842628718,0.159355,62753.0,62751.0,0.23773898]
[1719842628918,0.159355,62753.0,62751.0,0.24617702]
[1719842629371,0.159355,62753.0,62752.0,0.0932]
[1719842629552,0.21856197,62758.0,62752.0,0.26397702]
[1719842629729,0.07803002,62760.0,62753.0,0.1655258]
[1719842629933,0.14053195,62766.0,62763.0,0.00843804]
[1719842630132,0.23735602,62765.0,62764.0,0.16233898]
[1719842630472,0.477974,62765.0,62764.0,0.21875328]
[1719842630703,0.159323,62766.0,62764.0,0.16233898]
[1719842630904,0.159323,62766.0,62765.0,0.1677]
[1719842631110,0.159323,62766.0,62765.0,0.33003898]
[1719842631344,0.477966,62766.0,62765.0,0.33003898]
[1719842631611,0.477966,62766.0,62765.0,0.37892598]
[1719842632128,0.477966,62766.0,62765.0,0.28642598]
[1719842632391,0.63005991,62766.0,62765.0,0.23753898]
[1719842632627,0.63005991,62766.0,62765.0,0.25153898]
[1719842632882,0.477966,62766.0,62765.0,0.25153898]
[1719842633166,0.61849795,62766.0,62765.0,0.25153898]
[1719842633318,0.61849795,62766.0,62765.0,0.26553898]
[1719842633648,0.477966,62766.0,62765.0,0.26553898]
[1719842634784,0.477966,62766.0,62765.0,0.31985338]
[1719842635219,0.477966,62766.0,62765.0,0.33385338]
[1719842635420,0.796609,62766.0,62765.0,0.31985338]
[1719842635629,1.34537593,62766.0,62765.0,0.25153898]
[1719842635989,1.34537593,62766.0,62765.0,0.26553898]
[1719842636433,1.33381397,62766.0,62765.0,0.23753898]
[1719842636735,0.93714095,62766.0,62765.0,0.23753898]
[1719842636960,0.93714095,62766.0,62765.0,0.28523668]
[1719842636961,0.159323,62766.0,62765.0,0.28523668]
[1719842637144,0.159323,62766.0,62765.0,0.25153898]
[1719842637297,0.00084,62768.0,62765.0,0.25153898]
[1719842637499,0.29985195,62767.0,62766.0,0.16233898]
[1719842637700,0.15932,62767.0,62766.0,0.16233898]
[1719842637906,0.15932,62767.0,62766.0,0.21331978]
[1719842639244,0.29985195,62767.0,62766.0,0.22731978]
[1719842639555,0.61848995,62767.0,62766.0,0.22731978]
[1719842639955,0.15932,62767.0,62766.0,0.22731978]
[1719842640135,0.00084,62768.0,62766.0,0.22731978]
[1719842640301,0.14137195,62768.0,62767.0,0.05747888]
[1719842640504,0.00084,62768.0,62767.0,0.21981786]
[1719842640761,0.00084,62768.0,62767.0,0.3875749]
[1719842640977,0.00084,62768.0,62767.0,0.37913686]
[1719842641152,0.15293391,62768.0,62767.0,0.21981786]
[1719842641321,0.15293391,62768.0,62767.0,0.16233898]
[1719842641521,0.63088291,62768.0,62767.0,0.16233898]
[1719842641759,1.34617893,62768.0,62767.0,0.17633898]
[1719842642713,1.67481193,62768.0,62767.0,0.014]
[1719842643212,1.66481193,62768.0,62767.0,0.014]
[1719842643413,1.34617893,62768.0,62767.0,0.021]
[1719842644040,1.34617893,62768.0,62767.0,0.18333898]
[1719842644041,1.01598397,62768.0,62767.0,0.18333898]
[1719842644239,1.02754593,62768.0,62767.0,0.18333898]
[1719842645031,1.02754593,62768.0,62767.0,0.16833898]
[1719842645387,0.87545202,62768.0,62767.0,0.17233898]
[1719842645510,1.01598397,62768.0,62767.0,0.20629978]
[1719842645717,1.01598397,62768.0,62767.0,0.27799978]
[1719842646118,1.01598397,62768.0,62767.0,0.28299978]
[1719842646467,1.02754593,62768.0,62767.0,0.27799978]
[1719842646826,1.02754593,62768.0,62767.0,0.28099978]
[1719842647262,1.02754593,62768.0,62767.0,0.20929978]
[1719842647511,1.01598397,62768.0,62767.0,0.20929978]
[1719842647713,1.01598397,62768.0,62767.0,0.20529978]
[1719842647851,0.87545202,62768.0,62767.0,0.21373782]
[1719842648048,0.87545202,62768.0,62767.0,0.22173782]
[1719842648271,0.478789,62768.0,62767.0,0.21273782]
[1719842648470,0.61932095,62768.0,62767.0,0.20429978]
[1719842648671,0.478789,62768.0,62767.0,0.20429978]
[1719842648871,0.478789,62768.0,62767.0,0.21273782]
[1719842649252,0.00084,62768.0,62767.0,0.29953782]
[1719842649502,0.00084,62768.0,62767.0,0.49953782]
[1719842649697,0.00084,62768.0,62767.0,0.56003782]
[1719842650073,0.00084,62768.0,62767.0,0.57103782]
[1719842650431,0.00084,62768.0,62767.0,0.57903782]
[1719842650773,0.00084,62768.0,62767.0,0.57103782]
[1719842650967,0.00084,62768.0,62767.0,0.56259978]
[1719842651174,0.160156,62768.0,62767.0,0.37259978]
[1719842651493,0.160156,62768.0,62767.0,0.38103782]
[1719842651494,0.00084,62768.0,62767.0,0.38103782]
[1719842651654,0.00084,62768.0,62767.0,0.37103782]
[1719842651856,0.00084,62768.0,62767.0,1.47527082]
[1719842652084,0.00084,62768.0,62767.0,1.77173887]
[1719842652290,0.00084,62768.0,62767.0,1.78573887]
[1719842652499,0.00084,62768.0,62767.0,2.42634685]
[1719842652897,0.00084,62768.0,62767.0,2.10770885]
[1719842653209,0.00084,62768.0,62767.0,2.09370885]
[1719842653423,0.33010396,62787.0,62767.0,2.09370885]
[1719842653424,0.318519,62791.0,62787.0,0.0713]
[1719842653792,0.318486,62797.0,62792.0,0.00843804]
[1719842653905,0.318486,62797.0,62788.0,0.22706468]
[1719842653906,0.159251,62794.0,62793.0,0.16233898]
[1719842654317,0.159248,62795.0,62794.0,0.00843804]
[1719842654519,0.159248,62795.0,62794.0,0.32960802]
[1719842654952,0.159248,62795.0,62794.0,0.32116998]
[1719842655153,0.159248,62795.0,62794.0,0.40190868]
[1719842656167,0.159248,62795.0,62794.0,0.41034672]
[1719842656455,0.14053195,62802.0,62794.0,0.40190868]
[1719842656698,0.159228,62803.0,62800.0,0.00843804]
[1719842656906,0.159228,62803.0,62801.0,0.18707271]
[1719842657109,0.159228,62803.0,62801.0,0.34590371]
[1719842657285,0.159225,62804.0,62801.0,0.34590371]
[1719842657542,0.29975695,62804.0,62801.0,0.34590371]
[1719842657670,0.14053195,62803.0,62802.0,0.0339608]
[1719842657865,0.159225,62804.0,62802.0,0.19629978]
[1719842658071,0.159221,62806.0,62803.0,0.16233898]
[1719842658266,0.14053195,62808.0,62803.0,0.16233898]
[1719842658499,0.29974895,62808.0,62804.0,0.00843804]
[1719842658860,0.29974895,62808.0,62803.0,0.32156598]
[1719842658861,0.159219,62807.0,62806.0,0.00843804]
[1719842659062,0.159219,62807.0,62806.0,0.17077702]
[1719842659236,0.55568402,62807.0,62806.0,0.16233898]
[1719842659621,0.70777793,62807.0,62806.0,0.16233898]
[1719842660226,1.02621293,62807.0,62806.0,0.16233898]
[1719842660654,1.34464793,62807.0,62806.0,0.16433898]
[1719842660853,1.34464793,62807.0,62806.0,0.20252543]
[1719842661264,1.34464793,62807.0,62806.0,0.002]
[1719842661682,1.50654793,62807.0,62806.0,0.003]
[1719842661909,1.51654793,62807.0,62806.0,0.003]
[1719842662272,2.06188293,62807.0,62806.0,0.003]
[1719842662407,0.29979095,62791.0,62788.0,0.00843804]
[1719842662607,0.29979095,62791.0,62789.0,0.24702488]
[1719842662813,0.31135491,62790.0,62789.0,0.24702488]
[1719842663013,0.62987691,62790.0,62789.0,0.16233898]
[1719842663212,0.477783,62790.0,62789.0,0.16233898]
[1719842663413,0.07803002,62792.0,62789.0,0.16233898]
[1719842663414,0.21856197,62794.0,62791.0,0.00843804]
[1719842663633,0.29978395,62794.0,62792.0,0.16233898]
[1719842663839,0.29978195,62794.0,62793.0,0.082458]
[1719842664034,0.29978195,62794.0,62793.0,0.24479698]
[1719842664411,0.61828295,62794.0,62793.0,0.24479698]
[1719842664613,0.62984491,62794.0,62793.0,0.24479698]
[1719842664824,0.94834591,62794.0,62793.0,0.24479698]
[1719842665007,1.02637593,62794.0,62793.0,0.16233898]
[1719842665571,1.02637593,62794.0,62793.0,0.17533898]
[1719842665767,1.34487693,62794.0,62793.0,0.17533898]
[1719842666115,1.34487693,62794.0,62793.0,0.18833898]
[1719842666317,1.34487693,62794.0,62793.0,0.18926298]
[1719842666712,1.34487693,62794.0,62793.0,0.17626298]
[1719842666921,1.34487693,62794.0,62793.0,0.16326298]
[1719842667165,1.34487693,62794.0,62793.0,0.17326298]
[1719842667355,1.34487693,62794.0,62793.0,0.18626298]
[1719842667558,1.19278302,62794.0,62793.0,0.22077238]
[1719842667778,1.19278302,62794.0,62793.0,0.17626298]
[1719842667779,1.34487693,62794.0,62793.0,0.17626298]
[1719842668133,1.33331497,62794.0,62793.0,0.18826298]
[1719842668559,1.34487693,62794.0,62793.0,0.18826298]
[1719842669230,1.33331497,62794.0,62793.0,0.18826298]
[1719842669490,1.33331497,62794.0,62793.0,0.20793308]
[1719842670062,0.796252,62794.0,62793.0,0.20793308]
[1719842670258,0.477751,62794.0,62793.0,0.21637112]
[1719842670860,0.15925,62794.0,62793.0,0.21637112]
[1719842671085,0.159246,62796.0,62795.0,0.00843804]
[1719842671274,0.53703297,62800.0,62797.0,0.0897]
[1719842671275,0.14053195,62800.0,62797.0,0.0897]
[1719842671477,0.159238,62799.0,62798.0,0.16233898]
[1719842671768,0.159238,62799.0,62798.0,0.23083898]
[1719842671969,0.159238,62799.0,62798.0,0.29955867]
[1719842672270,0.159238,62799.0,62798.0,0.29112063]
[1719842672481,0.31846,62803.0,62800.0,0.00843804]
[1719842672691,0.477688,62803.0,62802.0,0.00843804]
[1719842672896,0.07803002,62806.0,62804.0,0.00843804]
[1719842672897,0.31844,62806.0,62804.0,0.00843804]
[1719842673099,0.47766,62806.0,62805.0,0.17077702]
[1719842674210,0.00084,62807.0,62806.0,0.00843804]
[1719842674420,0.00084,62807.0,62806.0,0.35834712]
[1719842676066,0.00084,62807.0,62806.0,0.51756712]
[1719842676457,0.00084,62807.0,62806.0,0.91847517]
[1719842676618,0.00084,62807.0,62806.0,0.85900712]
[1719842676785,0.00084,62807.0,62806.0,0.92147517]
[1719842676985,0.00084,62807.0,62806.0,0.86200712]
[1719842677466,0.00084,62807.0,62806.0,0.92147517]
[1719842677699,0.00084,62807.0,62806.0,1.43991517]
[1719842677852,0.00084,62807.0,62806.0,1.12147517]
[1719842678696,0.00084,62807.0,62806.0,1.24344515]
[1719842678895,0.00084,62807.0,62806.0,1.76088515]
[1719842679049,0.00841,62809.0,62808.0,0.86752107]
[1719842679255,0.00841,62809.0,62808.0,1.98583546]
[1719842679454,0.00841,62809.0,62808.0,2.18077685]
[1719842679655,0.00841,62809.0,62808.0,2.40426546]
[1719842680068,0.00841,62809.0,62808.0,2.47540227]
[1719842680313,0.0081017,62809.0,62808.0,2.47540227]
[1719842680723,0.0081017,62809.0,62808.0,2.15697227]
[1719842681108,0.0081017,62809.0,62808.0,2.47540227]
[1719842681289,0.0081017,62809.0,62808.0,2.40426546]
[1719842681879,0.0081017,62809.0,62808.0,2.08583546]
[1719842682092,0.0081017,62809.0,62808.0,2.09983546]
[1719842682298,0.0081017,62809.0,62808.0,2.14723257]
[1719842683156,0.0081017,62809.0,62808.0,2.46566257]
[1719842683360,0.0081017,62809.0,62808.0,2.04036741]
[1719842683558,0.0081017,62809.0,62808.0,2.09983546]
[1719842684118,0.0081017,62809.0,62808.0,1.72193741]
[1719842684281,0.0081017,62809.0,62808.0,1.62257446]
[1719842684458,0.0081017,62809.0,62808.0,1.88153641]
[1719842684807,0.0081017,62809.0,62808.0,1.94100446]
[1719842685159,0.0081017,62809.0,62808.0,1.95500446]
[1719842687195,0.0081017,62809.0,62808.0,1.89553641]
[1719842687417,0.0081017,62809.0,62808.0,1.95500446]
[1719842687822,0.0081017,62809.0,62808.0,1.35020641]
[1719842688028,0.0081017,62809.0,62808.0,1.66863641]
[1719842688428,0.0081017,62809.0,62808.0,1.73239541]
[1719842688632,0.0081017,62809.0,62808.0,1.61042543]
[1719842688808,0.0081017,62809.0,62808.0,1.73239541]
[1719842689005,0.0081017,62809.0,62808.0,1.79186346]
[1719842691124,0.0081017,62809.0,62808.0,1.73239541]
[1719842695571,0.0081017,62809.0,62808.0,1.83931506]
[1719842696114,0.0081017,62809.0,62808.0,1.77984701]
[1719842696333,0.0081017,62809.0,62808.0,1.77990392]
[1719842696784,0.0081017,62809.0,62808.0,1.83937197]
[1719842697359,0.0081017,62809.0,62808.0,1.86304086]
[1719842697553,0.0081017,62809.0,62808.0,1.80357281]
[1719842698117,0.0081017,62809.0,62808.0,1.48514281]
[1719842699087,0.0081017,62809.0,62808.0,1.79186346]
[1719842699870,0.0081017,62809.0,62808.0,1.79278746]
[1719842700097,0.0081017,62809.0,62808.0,2.11121746]
[1719842700325,0.0081017,62809.0,62808.0,2.32580778]
[1719842700463,0.08251,62831.0,62823.0,0.00843804]
[1719842700663,0.47835,62826.0,62825.0,0.00843804]
[1719842700928,0.160009,62826.0,62825.0,0.17077702]
[1719842701304,0.00084,62826.0,62825.0,0.17077702]
[1719842701910,0.00084,62826.0,62825.0,0.96663702]
[1719842702263,0.00084,62826.0,62825.0,1.54421182]
[1719842702371,0.00084,62826.0,62825.0,1.60275103]
[1719842702592,0.00084,62826.0,62825.0,1.55521182]
[1719842702992,0.00084,62826.0,62825.0,1.96926582]
[1719842703290,0.00084,62826.0,62825.0,2.17926582]
[1719842703414,0.00084,62826.0,62825.0,2.27926582]
[1719842704024,0.00084,62826.0,62825.0,2.03217832]
[1719842704232,0.00084,62826.0,62825.0,2.00841895]
[1719842704685,0.00084,62826.0,62825.0,1.95092182]
[1719842705238,0.00084,62826.0,62825.0,1.99839507]
[1719842705435,0.00084,62826.0,62825.0,1.53686782]
[1719842705677,0.00084,62826.0,62825.0,1.52586782]
[1719842705878,0.00084,62826.0,62825.0,1.55386782]
[1719842706084,0.00084,62826.0,62825.0,1.87221182]
[1719842706282,0.00084,62826.0,62825.0,1.85821182]
[1719842706657,0.00084,62826.0,62825.0,1.87221182]
[1719842707029,0.00084,62826.0,62825.0,1.90568507]
[1719842707380,0.00084,62826.0,62825.0,1.90564645]
[1719842707607,0.00084,62826.0,62825.0,1.91964645]
[1719842707878,0.00084,62826.0,62825.0,1.93932517]
[1719842708259,0.00084,62826.0,62825.0,1.96312432]
[1719842708481,0.00084,62826.0,62825.0,1.89189054]
[1719842708657,0.00084,62826.0,62825.0,1.96312432]
[1719842708868,0.00084,62826.0,62825.0,2.29546832]
[1719842709066,0.00084,62826.0,62825.0,1.97712432]
[1719842709260,0.00084,62826.0,62825.0,1.84542929]
[1719842709461,0.00084,62826.0,62825.0,1.80342929]
[1719842709715,0.00084,62826.0,62825.0,1.81742929]
[1719842709926,0.00084,62826.0,62825.0,1.49908529]